Workbook

Sheet 2023
A1: Årsbudsjett 2023 Holla og Helgen Sokn
A3: Driftsregnskap
B4: Opprinnelig budsjett 2023 | C4: Opprinnelig budsjett 2022 | D4: Regnskap 2022 | E4: Regnskap 2021
A5: 600-659 Brukerbet., salg, avgifter og leieinnt. | B5: -110000 | C5: -84500 | D5: -117163.25 | E5: -83300
A6: 700-789 Refusjoner/overføringer | B6: -31000 | C6: -51500 | D6: -46826.7 | E6: -67096
A7: 840-859 Tilskudd fra sokn og organ i sokn | D7: 0 | E7: 0
A8: 860-879 Andre tilskudd, gaver, innsamlede midler | B8: -338000 | C8: -286900 | D8: -421390.61 | E8: -265132
A9: SUM DRIFTSINNTEKTER | B9: =SUM(B5:B8) -> -479000 | C9: =SUM(C5:C8) -> -422900 | D9: =SUM(D5:D8) -> -585380.56 | E9: =SUM(E5:E8) -> -415528
A10: 010-099 Lønn og sosiale utgifter | D10: 0 | E10: 0
A11: 100-299 Kjøp av varer og tjenester | B11: =307000+100000 -> 407000 | C11: 339300 | D11: 369331.05 | E11: =461656-67096-161670 -> 232890
A12: 300-389 +429 Refusjoner/overføringer | B12: 31000 | C12: 51500 | D12: 46826.7 | E12: =65746+1350 -> 67096
A13: 400-479 ekskl. 429 Tilskudd og gaver | B13: 95000 | C13: 27000 | D13: 94130.49 | E13: 27015
A14: SUM DRIFTSUTGIFTER | B14: =SUM(B10:B13) -> 533000 | C14: 417800 | D14: 510288.24 | E14: 327001
A15: BRUTTO DRIFTSRESULTAT | B15: =+B9+B14 -> 54000 | C15: -5100 | D15: -75092.32 | E15: -88527
A16: 900-909 Renteinntekter og utbytte | B16: -2000 | C16: -300 | D16: -1664 | E16: -285
A17: NETTO FINANSINNTEKTER/-UTGIFTER | B17: =+B16 -> -2000 | C17: -300 | D17: -1664 | E17: -285
A18: 590 Avskrivninger | B18: 21745 | C18: 17000 | D18: 21745.35 | E18: 17000
A19: 990 Motpost avskrivninger | B19: -21745 | C19: -17000 | D19: -21745.35 | E19: -17000
A20: NETTO DRIFTSRESULTAT | B20: =+B17+B15 -> 52000 | C20: -5400 | D20: -76756.32 | E20: -88812
A21: 930 Bruk av udisponert mindreforbruk fra tidl. år (overskudd) | B21: -71356 | C21: -89520 | D21: -89520 | E21: -708
A22: 940-949 Bruk av disposisjonsfond
A23: 950-959 Bruk av bundne fond
A24: SUM BRUK AV AVSETNINGER | B24: =SUM(B21:B23) -> -71356 | C24: =SUM(C21:C23) -> -89520 | D24: =SUM(D21:D23) -> -89520 | E24: =SUM(E21:E23) -> -708
A25: 530 Avsetning til dekning av merforbruk fra tidl. år (underskudd) | C25: 51500 | D25: 51500
A26: 540-549 Avsatt til disposisjonsfond | B26: 19356
A27: 550-559 Avsatt til bundne fond | C27: 43420 | D27: 43420
A28: 590 Overført til investeringsregnskapet | B28: 0 | D28: 0 | E28: 0
A29: SUM AVSETNINGER | B29: =SUM(B25:B28) -> 19356 | C29: =SUM(C25:C27) -> 94920 | D29: =SUM(D25:D28) -> 94920 | E29: =SUM(E25:E28) -> 0
A30: 580 REGNSKAPSMESSIG MINDREFORBRUK (OVERSKUDD) | B30: =IF((+B29+B24+B20)<0,(+B29+B24+B20),0) -> 0 | C30: =IF((+C29+C24+C20)<0,(+C29+C24+C20),0) -> 0 | D30: =IF((+D29+D24+D20)<0,(+D29+D24+D20),0) -> -71356.32 | E30: =IF((+E29+E24+E20)<0,(+E29+E24+E20),0) -> -89520
A31: 980 REGNSKAPSMESSIG MERFORBRUK (UNDERSKUDD) | B31: =IF((+B29+B24+B20)>0,(+B29+B24+B20),0) -> 0 | C31: =IF((+C29+C24+C20)>0,(+C29+C24+C20),0) -> 0 | D31: =IF((+D29+D24+D20)>0,(+D29+D24+D20),0) -> 0 | E31: 0
A33: Investeringsregnskapet | B33: Opprinnelig budsjett 2023 | C33: Opprinnelig budsjett 2022 | D33: Regnskap 2022 | E33: Regnskap 2021
A34: 010–389 + 429 Investeringer i anleggsmidler | C34: 0 | D34: 0 | E34: 161670
A35: 530 Dekning av tidligere års udekket (underskudd) | B35: 0 | C35: 161670 | D35: 161670
A36: Årets finansieringsbehov | B36: =SUM(B34:B35) -> 0 | C36: =SUM(C34:C35) -> 161670 | D36: =SUM(D34:D35) -> 161670 | E36: =SUM(E34:E34) -> 161670
A37: Finansiert slik:
A38: 660–670 Inntekter fra salg av driftsmidler/fast eiend.
A39: 700–779 Refusjoner
A40: 790 Kalk. inntekt ved komm. tj. ytingsavtale
A41: 800–879 Tilskudd til investeringer
A42: 910 Bruk av lånemidler
A43: 920–929 Mottatte avdrag på utlån (ekstraord.)
A44: Sum ekstern finansiering | B44: =SUM(B38:B43) -> 0 | C44: =SUM(C38:C43) -> 0 | D44: =SUM(D38:D43) -> 0 | E44: 0
A45: 970 Overført fra driftsregnskapet | B45: 0 | C45: -43420 | D45: -43420 | E45: 0
A46: 930–959 Bruk av avsetninger | B46: 0 | C46: -118250 | D46: -118250
A47: Sum finansiering | B47: =B44+B45+B46 -> 0 | C47: =C44+C45+C46 -> -161670 | D47: =D44+D45+D46 -> -161670 | E47: =E44+E45+E46 -> 0
A48: 580/980 Udekket/udisponert | B48: =B36+B47 -> 0 | C48: =C36+C47 -> 0 | D48: =D36+D47 -> 0 | E48: =E36+E47 -> 161670
A51: Underskrifter:
A56: Dato MR-leder

Sheet 2022
A1: Årsbudsjett 2022 Holla og Helgen Sokn
A3: Driftsregnskap
B4: Opprinnelig budsjett 2022 | C4: Opprinnelig budsjett 2021 | D4: Regnskap 2021 | E4: Regnskap 2020
A5: 600-659 Brukerbet., salg, avgifter og leieinnt. | B5: -84500 | C5: 0 | D5: -83300 | E5: -42500
A6: 700-789 Refusjoner/overføringer | B6: -51500 | D6: -67096 | E6: -46054
A7: 840-859 Tilskudd fra sokn og organ i sokn | D7: 0 | E7: 0
A8: 860-879 Andre tilskudd, gaver, innsamlede midler | B8: -286900 | C8: 0 | D8: -265132 | E8: -288738
A9: SUM DRIFTSINNTEKTER | B9: =SUM(B5:B8) -> -422900 | C9: =SUM(C5:C8) -> 0 | D9: =SUM(D5:D8) -> -415528 | E9: -377292
A10: 010-099 Lønn og sosiale utgifter | D10: 0 | E10: 0
A11: 100-299 Kjøp av varer og tjenester | B11: 339300 | C11: 0 | D11: =461656-67096-161670 -> 232890 | E11: 176054
A12: 300-389 +429 Refusjoner/overføringer | B12: 51500 | D12: =65746+1350 -> 67096 | E12: 46054
A13: 400-479 ekskl. 429 Tilskudd og gaver | B13: 27000 | C13: 0 | D13: 27015 | E13: 80446
A14: SUM DRIFTSUTGIFTER | B14: =SUM(B10:B13) -> 417800 | C14: 0 | D14: 327001 | E14: 302554
A15: BRUTTO DRIFTSRESULTAT | B15: =+B9+B14 -> -5100 | C15: 0 | D15: -88527 | E15: -74738
A16: 900-909 Renteinntekter og utbytte | B16: -300 | D16: -285 | E16: -1845
A17: NETTO FINANSINNTEKTER/-UTGIFTER | B17: =+B16 -> -300 | C17: 0 | D17: -285 | E17: -1845
A18: 590 Avskrivninger | B18: 17000 | D18: 17000 | E18: 16181
A19: 990 Motpost avskrivninger | B19: -17000 | D19: -17000 | E19: -16181
A20: NETTO DRIFTSRESULTAT | B20: =+B17+B15 -> -5400 | C20: 0 | D20: -88812 | E20: -76583
A21: 930 Bruk av udisponert mindreforbruk fra tidl. år (overskudd) | B21: -89520 | D21: -708 | E21: -423969.89 | I21: Må i vedtaket spesifisere hvordan mindreforbruket for 2021 skal benyttes i 2022; enten inngå i overføring til investering eller drift eller avsatt til disp.fond
A22: 940-949 Bruk av disposisjonsfond
A23: 950-959 Bruk av bundne fond
A24: SUM BRUK AV AVSETNINGER | B24: =SUM(B21:B23) -> -89520 | C24: =SUM(C21:C23) -> 0 | D24: =SUM(D21:D23) -> -708 | E24: -423969.89
A25: 530 Avsetning til dekning av merforbruk fra tidl. år (underskudd) | B25: 51500
A26: 540-549 Avsatt til disposisjonsfond | E26: 423970
A27: 550-559 Avsatt til bundne fond | B27: 43420
A28: 590 Overført til investeringsregnskapet | B28: 0 | D28: 0 | E28: 75875
A29: SUM AVSETNINGER | B29: =SUM(B25:B28) -> 94920 | C29: =SUM(C25:C27) -> 0 | D29: =SUM(D25:D28) -> 0 | E29: 499845
A30: 580 REGNSKAPSMESSIG MINDREFORBRUK (OVERSKUDD) | B30: =IF((+B29+B24+B20)<0,(+B29+B24+B20),0) -> 0 | C30: =IF((+C29+C24+C20)<0,(+C29+C24+C20),0) -> 0 | D30: =IF((+D29+D24+D20)<0,(+D29+D24+D20),0) -> -89520 | E30: -707.89
A31: 980 REGNSKAPSMESSIG MERFORBRUK (UNDERSKUDD) | B31: =IF((+B29+B24+B20)>0,(+B29+B24+B20),0) -> 0 | C31: =IF((+C29+C24+C20)>0,(+C29+C24+C20),0) -> 0 | D31: =IF((+D29+D24+D20)>0,(+D29+D24+D20),0) -> 0 | E31: 0
A33: Investeringsregnskapet | B33: Opprinnelig budsjett 2022 | C33: Opprinnelig budsjett 2021 | D33: Regnskap 2021 | E33: Regnskap 2020
A34: 010–389 + 429 Investeringer i anleggsmidler | C34: 0 | D34: 161670 | E34: 75875 | I34: Hvis det skal investeres mer i varige driftsmidler så må det budsjetteres her og posten må finansieres enten med overføring fra drift eller bruk av disposisjonsfond
A35: 530 Dekning av tidligere års udekket (underskudd) | B35: 161670 | I35: Må i vedtaket spesifiseres om udekket beløp fra 2021 skal dekkes inn med overføring fra drift i 2022 eller tas fra dispoisjonsfond.
A36: Årets finansieringsbehov | B36: =SUM(B34:B35) -> 161670 | C36: =SUM(C34:C34) -> 0 | D36: =SUM(D34:D34) -> 161670 | E36: 75875
A37: Finansiert slik:
A38: 660–670 Inntekter fra salg av driftsmidler/fast eiend.
A39: 700–779 Refusjoner
A40: 790 Kalk. inntekt ved komm. tj. ytingsavtale
A41: 800–879 Tilskudd til investeringer
A42: 910 Bruk av lånemidler
A43: 920–929 Mottatte avdrag på utlån (ekstraord.)
A44: Sum ekstern finansiering | B44: =SUM(B38:B43) -> 0 | C44: =SUM(C38:C43) -> 0 | D44: =SUM(D38:D43) -> 0 | E44: 0
A45: 970 Overført fra driftsregnskapet | B45: -43420 | C45: 0 | D45: 0 | E45: -75875
A46: 930–959 Bruk av avsetninger | B46: -118250 | I46: Tall er bare lagt inn som eksempel hvis det udekkede beløpet skal tas fra disposisjonsfond
A47: Sum finansiering | B47: =B44+B45+B46 -> -161670 | D47: =D44+D45+D46 -> 0 | E47: -75875
A48: 580/980 Udekket/udisponert | B48: =B36+B47 -> 0 | C48: =C36+C47 -> 0 | D48: =D36+D47 -> 161670 | E48: 0
A51: Underskrifter:
A56: Dato MR-leder
